[Event "Early-Titled-Tuesday-Blitz-May-07-2024"]
[Site "Chess.com"]
[Date "2024.05.07"]
[Round "4"]
[White "C_K_G"]
[Black "abelmat"]
[Result "1-0"]
[WhiteElo "2283"]
[BlackElo "2018"]
[TimeControl "180+1"]
[EndTime "8:42:02 PDT"]
[Termination "C_K_G won by checkmate"]

1. e4 {[%clk 0:03:00.9]} 1... e6 {[%clk 0:02:59.8]} 2. Nf3 {[%clk 0:03:01.1]}
2... d5 {[%clk 0:03:00.5]} 3. Nc3 {[%clk 0:03:01.7]} 3... dxe4 {[%clk 0:03:00]}
4. Nxe4 {[%clk 0:03:02.6]} 4... Nd7 {[%clk 0:03:00.6]} 5. d4 {[%clk 0:03:02.3]}
5... Ngf6 {[%clk 0:03:01.5]} 6. Ng3 {[%clk 0:03:02.4]} 6... Be7 {[%clk
0:03:01.2]} 7. Bd3 {[%clk 0:03:02.5]} 7... O-O {[%clk 0:03:01.7]} 8. O-O {[%clk
0:03:01.7]} 8... b6 {[%clk 0:03:02.2]} 9. Re1 {[%clk 0:03:01.9]} 9... Bb7 {[%clk
0:03:02.6]} 10. c4 {[%clk 0:03:02]} 10... c5 {[%clk 0:03:02.9]} 11. Be3 {[%clk
0:02:59.8]} 11... cxd4 {[%clk 0:03:02.4]} 12. Bxd4 {[%clk 0:02:59.7]} 12... Nc5
{[%clk 0:03:01]} 13. Bc2 {[%clk 0:02:57.3]} 13... Bxf3 {[%clk 0:02:59.4]} 14.
gxf3 {[%clk 0:02:58.2]} 14... a5 {[%clk 0:02:52.9]} 15. Kh1 {[%clk 0:02:58.2]}
15... Qc7 {[%clk 0:02:50.1]} 16. Qe2 {[%clk 0:02:53.9]} 16... Rad8 {[%clk
0:02:48.7]} 17. Bc3 {[%clk 0:02:48.6]} 17... Qf4 {[%clk 0:02:42.2]} 18. Rg1
{[%clk 0:02:43.4]} 18... g6 {[%clk 0:02:21.9]} 19. Be5 {[%clk 0:02:35.9]} 19...
Qh4 {[%clk 0:02:15.9]} 20. Bc7 {[%clk 0:02:22.1]} 20... Rd4 {[%clk 0:02:03.7]}
21. Bxb6 {[%clk 0:02:17.4]} 21... Rxc4 {[%clk 0:01:56.6]} 22. Bxa5 {[%clk
0:02:15.6]} 22... Nd5 {[%clk 0:01:36.5]} 23. Ne4 {[%clk 0:02:05.6]} 23... Nf4
{[%clk 0:01:31.2]} 24. Qxc4 {[%clk 0:02:00.6]} 24... Nh3 {[%clk 0:01:14.6]} 25.
Rg2 {[%clk 0:01:48.2]} 25... Nf4 {[%clk 0:00:42.2]} 26. Rg4 {[%clk 0:01:39.3]}
26... Nxe4 {[%clk 0:00:33.8]} 27. Qxe4 {[%clk 0:01:29.2]} 27... Qh5 {[%clk
0:00:26.1]} 28. Rxf4 {[%clk 0:01:24.7]} 28... Qxa5 {[%clk 0:00:25]} 29. Bb3
{[%clk 0:01:15.7]} 29... Bd6 {[%clk 0:00:22.9]} 30. Rh4 {[%clk 0:01:14.3]} 30...
Qg5 {[%clk 0:00:17.5]} 31. Rd1 {[%clk 0:01:03.9]} 31... Bb8 {[%clk 0:00:13.3]}
32. Bxe6 {[%clk 0:00:57.6]} 32... fxe6 {[%clk 0:00:10.5]} 33. Qxe6+ {[%clk
0:00:58.5]} 33... Kg7 {[%clk 0:00:09.4]} 34. Rd7+ {[%clk 0:00:57]} 34... Rf7
{[%clk 0:00:08]} 35. Qxf7+ {[%clk 0:00:56.6]} 35... Kh8 {[%clk 0:00:06.6]} 36.
Qxh7# {[%clk 0:00:56.8]} 1-0

[Event "Early-Titled-Tuesday-Blitz-May-07-2024"]
[Site "Chess.com"]
[Date "2024.05.07"]
[Round "4"]
[White "mapleaff"]
[Black "Zq1"]
[Result "0-1"]
[WhiteElo "2265"]
[BlackElo "2626"]
[TimeControl "180+1"]
[EndTime "8:42:03 PDT"]
[Termination "Zq1 won on time"]

1. e4 {[%clk 0:02:58.8]} 1... c5 {[%clk 0:02:59.3]} 2. Nf3 {[%clk 0:02:58.6]}
2... d6 {[%clk 0:02:58.9]} 3. Bb5+ {[%clk 0:02:56.2]} 3... Bd7 {[%clk
0:02:58.3]} 4. Bxd7+ {[%clk 0:02:55.4]} 4... Qxd7 {[%clk 0:02:58.5]} 5. c4
{[%clk 0:02:53.9]} 5... e5 {[%clk 0:02:57.6]} 6. O-O {[%clk 0:02:52.9]} 6... Nc6
{[%clk 0:02:57.3]} 7. Nc3 {[%clk 0:02:53.1]} 7... g6 {[%clk 0:02:57.2]} 8. d3
{[%clk 0:02:53.4]} 8... Bg7 {[%clk 0:02:57.2]} 9. Bg5 {[%clk 0:02:53]} 9... h6
{[%clk 0:02:56.7]} 10. Bd2 {[%clk 0:02:52.2]} 10... Nge7 {[%clk 0:02:56.3]} 11.
a3 {[%clk 0:02:47.8]} 11... O-O {[%clk 0:02:53.5]} 12. Qc1 {[%clk 0:02:42.7]}
12... Kh7 {[%clk 0:02:52.4]} 13. Rb1 {[%clk 0:02:42.4]} 13... f5 {[%clk
0:02:51.3]} 14. exf5 {[%clk 0:02:34.1]} 14... Nxf5 {[%clk 0:02:45.8]} 15. Nd5
{[%clk 0:02:33.7]} 15... g5 {[%clk 0:02:42.6]} 16. Bc3 {[%clk 0:02:27.8]} 16...
g4 {[%clk 0:02:35.1]} 17. Nd2 {[%clk 0:02:26.9]} 17... Ncd4 {[%clk 0:02:30.7]}
18. Qd1 {[%clk 0:02:21.9]} 18... h5 {[%clk 0:02:29.2]} 19. h3 {[%clk 0:02:04.2]}
19... Nh4 {[%clk 0:01:58.9]} 20. hxg4 {[%clk 0:01:53.4]} 20... Qxg4 {[%clk
0:01:53.2]} 21. Qxg4 {[%clk 0:01:52.8]} 21... hxg4 {[%clk 0:01:53]} 22. Bxd4
{[%clk 0:01:53.2]} 22... exd4 {[%clk 0:01:41.6]} 23. Ne4 {[%clk 0:01:52.2]}
23... Be5 {[%clk 0:01:37.7]} 24. b4 {[%clk 0:01:41.7]} 24... b6 {[%clk
0:01:36.9]} 25. g3 {[%clk 0:01:13.7]} 25... Nf3+ {[%clk 0:01:34.3]} 26. Kg2
{[%clk 0:01:14.3]} 26... Kg6 {[%clk 0:01:32.8]} 27. Rh1 {[%clk 0:01:11.7]} 27...
Rh8 {[%clk 0:01:31.4]} 28. Nc7 {[%clk 0:00:54.3]} 28... Raf8 {[%clk 0:01:25.4]}
29. Nb5 {[%clk 0:00:46.3]} 29... Rxh1 {[%clk 0:01:06.4]} 30. Rxh1 {[%clk
0:00:43.8]} 30... a6 {[%clk 0:01:03.4]} 31. Nc7 {[%clk 0:00:14.5]} 31... cxb4
{[%clk 0:00:55.2]} 32. axb4 {[%clk 0:00:14.4]} 32... a5 {[%clk 0:00:55]} 33. Nd5
{[%clk 0:00:10.4]} 33... a4 {[%clk 0:00:45.2]} 34. Ra1 {[%clk 0:00:08.9]} 34...
Rh8 {[%clk 0:00:43.2]} 35. Rh1 {[%clk 0:00:01.5]} 35... Rxh1 {[%clk 0:00:42.3]}
36. Kxh1 {[%clk 0:00:02.4]} 36... a3 {[%clk 0:00:41.7]} 0-1

[Event "Early-Titled-Tuesday-Blitz-May-07-2024"]
[Site "Chess.com"]
[Date "2024.05.07"]
[Round "4"]
[White "gurelediz"]
[Black "KononenkoD"]
[Result "1-0"]
[WhiteElo "2946"]
[BlackElo "2614"]
[TimeControl "180+1"]
[EndTime "8:42:07 PDT"]
[Termination "gurelediz won by checkmate"]

1. b3 {[%clk 0:03:00.9]} 1... c5 {[%clk 0:02:55.1]} 2. Bb2 {[%clk 0:03:00.7]}
2... Nc6 {[%clk 0:02:54.4]} 3. Nf3 {[%clk 0:03:00.6]} 3... d6 {[%clk 0:02:50.8]}
4. e3 {[%clk 0:02:58.2]} 4... Bg4 {[%clk 0:02:50.2]} 5. d4 {[%clk 0:02:52.2]}
5... cxd4 {[%clk 0:02:49.1]} 6. exd4 {[%clk 0:02:53.1]} 6... Nf6 {[%clk
0:02:47.5]} 7. Be2 {[%clk 0:02:50.4]} 7... d5 {[%clk 0:02:47.6]} 8. O-O {[%clk
0:02:49.3]} 8... e6 {[%clk 0:02:47.7]} 9. h3 {[%clk 0:02:49.3]} 9... Bh5 {[%clk
0:02:47.1]} 10. Nbd2 {[%clk 0:02:48.3]} 10... Be7 {[%clk 0:02:45.2]} 11. Ne5
{[%clk 0:02:45.2]} 11... Bxe2 {[%clk 0:02:43.8]} 12. Qxe2 {[%clk 0:02:46.1]}
12... O-O {[%clk 0:02:43.8]} 13. c4 {[%clk 0:02:46.4]} 13... dxc4 {[%clk
0:02:43.3]} 14. Nxc6 {[%clk 0:02:46.1]} 14... bxc6 {[%clk 0:02:43]} 15. Nxc4
{[%clk 0:02:35.5]} 15... c5 {[%clk 0:02:41.9]} 16. Rfd1 {[%clk 0:02:24.8]} 16...
Qc7 {[%clk 0:02:34.6]} 17. dxc5 {[%clk 0:02:22]} 17... Qxc5 {[%clk 0:02:34.4]}
18. Rac1 {[%clk 0:02:15.5]} 18... Qg5 {[%clk 0:02:31.4]} 19. Ne5 {[%clk
0:01:52.2]} 19... Rac8 {[%clk 0:02:16.6]} 20. Nc6 {[%clk 0:01:38.3]} 20... Bc5
{[%clk 0:02:15.8]} 21. Bxf6 {[%clk 0:01:17.1]} 21... gxf6 {[%clk 0:02:14.3]} 22.
h4 {[%clk 0:01:11]} 22... Qf5 {[%clk 0:01:58.1]} 23. g4 {[%clk 0:01:11.1]} 23...
Bxf2+ {[%clk 0:01:27.7]} 24. Qxf2 {[%clk 0:01:12]} 24... Qxg4+ {[%clk
0:01:27.3]} 25. Kh2 {[%clk 0:01:07.7]} 25... Kh8 {[%clk 0:01:01.2]} 26. Qxf6+
{[%clk 0:00:48.5]} 26... Qg7 {[%clk 0:00:58.1]} 27. Qxg7+ {[%clk 0:00:48.9]}
27... Kxg7 {[%clk 0:00:58.6]} 28. Ne5 {[%clk 0:00:49.8]} 28... Rxc1 {[%clk
0:00:56.6]} 29. Rxc1 {[%clk 0:00:50.7]} 29... Rd8 {[%clk 0:00:54.9]} 30. Rc7
{[%clk 0:00:44.3]} 30... Rd2+ {[%clk 0:00:54.9]} 31. Kg3 {[%clk 0:00:44.6]}
31... Rxa2 {[%clk 0:00:54.7]} 32. Rxf7+ {[%clk 0:00:44.5]} 32... Kg8 {[%clk
0:00:50.8]} 33. Rb7 {[%clk 0:00:42.5]} 33... a5 {[%clk 0:00:46.9]} 34. Ng4
{[%clk 0:00:36.7]} 34... Ra3 {[%clk 0:00:40.9]} 35. Nf6+ {[%clk 0:00:34.2]}
35... Kf8 {[%clk 0:00:41.5]} 36. Nxh7+ {[%clk 0:00:34.7]} 36... Ke8 {[%clk
0:00:41.9]} 37. Nf6+ {[%clk 0:00:35.6]} 37... Kd8 {[%clk 0:00:40.9]} 38. h5
{[%clk 0:00:24.3]} 38... Kc8 {[%clk 0:00:40.9]} 39. Rb5 {[%clk 0:00:23]} 39...
a4 {[%clk 0:00:40.9]} 40. h6 {[%clk 0:00:23.4]} 40... axb3 {[%clk 0:00:41.3]}
41. h7 {[%clk 0:00:23.7]} 41... b2+ {[%clk 0:00:41.9]} 42. Kg2 {[%clk
0:00:20.5]} 42... Ra2 {[%clk 0:00:41.6]} 43. h8=Q+ {[%clk 0:00:20.5]} 43... Kc7
{[%clk 0:00:42.5]} 44. Qb8+ {[%clk 0:00:20.7]} 44... Kc6 {[%clk 0:00:42.5]} 45.
Qb6# {[%clk 0:00:21.6]} 1-0

[Event "Early-Titled-Tuesday-Blitz-May-07-2024"]
[Site "Chess.com"]
[Date "2024.05.07"]
[Round "4"]
[White "ilqar_74"]
[Black "ChainedDowntohell"]
[Result "1-0"]
[WhiteElo "2836"]
[BlackElo "2580"]
[TimeControl "180+1"]
[EndTime "8:42:07 PDT"]
[Termination "ilqar_74 won by checkmate"]

1. e4 {[%clk 0:02:59.7]} 1... c5 {[%clk 0:02:56.4]} 2. Nf3 {[%clk 0:02:59.3]}
2... Nc6 {[%clk 0:02:55.8]} 3. d4 {[%clk 0:02:59.3]} 3... cxd4 {[%clk
0:02:55.8]} 4. Nxd4 {[%clk 0:03:00.2]} 4... g6 {[%clk 0:02:56]} 5. c4 {[%clk
0:02:58.3]} 5... Nf6 {[%clk 0:02:54.3]} 6. Nc3 {[%clk 0:02:58.3]} 6... d6 {[%clk
0:02:54.2]} 7. Be2 {[%clk 0:02:58.5]} 7... Nxd4 {[%clk 0:02:54.2]} 8. Qxd4
{[%clk 0:02:58.2]} 8... Bg7 {[%clk 0:02:54.7]} 9. O-O {[%clk 0:02:58.9]} 9...
O-O {[%clk 0:02:54.9]} 10. Qd3 {[%clk 0:02:59.5]} 10... a5 {[%clk 0:02:53.8]}
11. Be3 {[%clk 0:02:59.8]} 11... a4 {[%clk 0:02:53.2]} 12. Bd4 {[%clk
0:03:00.3]} 12... Qa5 {[%clk 0:02:50.5]} 13. Rfd1 {[%clk 0:02:58.6]} 13... Be6
{[%clk 0:02:47.2]} 14. Rab1 {[%clk 0:02:58.5]} 14... Nd7 {[%clk 0:02:45.6]} 15.
Bxg7 {[%clk 0:02:55.7]} 15... Kxg7 {[%clk 0:02:46.5]} 16. Qd4+ {[%clk
0:02:56.2]} 16... f6 {[%clk 0:02:43.4]} 17. h4 {[%clk 0:02:51.8]} 17... Rfc8
{[%clk 0:02:35.4]} 18. Rdc1 {[%clk 0:02:47.4]} 18... Rc7 {[%clk 0:02:24.2]} 19.
b4 {[%clk 0:02:44]} 19... axb3 {[%clk 0:02:12.2]} 20. axb3 {[%clk 0:02:44]}
20... Qb4 {[%clk 0:02:04]} 21. Qd1 {[%clk 0:02:31.7]} 21... Nc5 {[%clk
0:01:49.9]} 22. h5 {[%clk 0:02:25.8]} 22... g5 {[%clk 0:01:48]} 23. g3 {[%clk
0:02:22.3]} 23... Rcc8 {[%clk 0:01:41.8]} 24. Bg4 {[%clk 0:01:51]} 24... Bxg4
{[%clk 0:01:15.6]} 25. Qxg4 {[%clk 0:01:50.5]} 25... Nxb3 {[%clk 0:01:15.7]} 26.
Nd5 {[%clk 0:01:27.3]} 26... Qa4 {[%clk 0:00:57.7]} 27. Nb6 {[%clk 0:01:22.6]}
27... Qa3 {[%clk 0:00:54.4]} 28. Rc3 {[%clk 0:01:16.2]} 28... Qc5 {[%clk
0:00:30.3]} 29. Rcxb3 {[%clk 0:01:04.4]} 29... Ra2 {[%clk 0:00:29.8]} 30. Qf3
{[%clk 0:01:04.6]} 30... Rc6 {[%clk 0:00:26]} 31. Nd5 {[%clk 0:01:02]} 31...
Rca6 {[%clk 0:00:20.1]} 32. Rxb7 {[%clk 0:00:57]} 32... Ra1 {[%clk 0:00:14.9]}
33. Rxe7+ {[%clk 0:00:46.9]} 33... Kg8 {[%clk 0:00:14.5]} 34. Rxa1 {[%clk
0:00:43.3]} 34... Rxa1+ {[%clk 0:00:13.9]} 35. Kg2 {[%clk 0:00:41.4]} 35... Qxc4
{[%clk 0:00:13.2]} 36. Nxf6+ {[%clk 0:00:41.4]} 36... Kf8 {[%clk 0:00:13.2]} 37.
Nd5+ {[%clk 0:00:40.5]} 37... Kg8 {[%clk 0:00:12.1]} 38. Qf7+ {[%clk 0:00:40.4]}
38... Kh8 {[%clk 0:00:12.4]} 39. Re8# {[%clk 0:00:37.7]} 1-0

[Event "Early-Titled-Tuesday-Blitz-May-07-2024"]
[Site "Chess.com"]
[Date "2024.05.07"]
[Round "4"]
[White "Semetey"]
[Black "MarkusRagger"]
[Result "1/2-1/2"]
[WhiteElo "2587"]
[BlackElo "2818"]
[TimeControl "180+1"]
[EndTime "8:42:07 PDT"]
[Termination "Game drawn by agreement"]

1. Nc3 {[%clk 0:02:01.8]} 1... d5 {[%clk 0:02:57]} 2. d4 {[%clk 0:02:00.3]} 2...
Nf6 {[%clk 0:02:56.3]} 3. Bf4 {[%clk 0:02:00.1]} 3... g6 {[%clk 0:02:56.2]} 4.
e3 {[%clk 0:01:59.3]} 4... Bg7 {[%clk 0:02:54.9]} 5. Nb5 {[%clk 0:01:58.9]} 5...
Na6 {[%clk 0:02:54.6]} 6. h3 {[%clk 0:01:58.2]} 6... O-O {[%clk 0:02:52.7]} 7.
Nf3 {[%clk 0:01:58.5]} 7... Ne4 {[%clk 0:02:49]} 8. Nd2 {[%clk 0:01:57]} 8... c6
{[%clk 0:02:36.4]} 9. Nxe4 {[%clk 0:01:56.2]} 9... dxe4 {[%clk 0:02:36.6]} 10.
Nc3 {[%clk 0:01:56]} 10... c5 {[%clk 0:02:37.1]} 11. Bxa6 {[%clk 0:01:37.9]}
11... bxa6 {[%clk 0:02:22.8]} 12. dxc5 {[%clk 0:01:34.5]} 12... Qa5 {[%clk
0:02:21.7]} 13. O-O {[%clk 0:01:34.4]} 13... Qxc5 {[%clk 0:02:13.9]} 14. Nxe4
{[%clk 0:01:32.7]} 14... Qc6 {[%clk 0:02:13.1]} 15. Nc3 {[%clk 0:01:29.5]} 15...
Bb7 {[%clk 0:02:10.3]} 16. f3 {[%clk 0:01:29.3]} 16... Rfd8 {[%clk 0:02:06.6]}
17. Qe2 {[%clk 0:01:29.5]} 17... Bxc3 {[%clk 0:01:47.3]} 18. bxc3 {[%clk
0:01:30.4]} 18... Qxc3 {[%clk 0:01:47.4]} 19. Rfd1 {[%clk 0:01:23.5]} 19... f6
{[%clk 0:01:38.8]} 20. e4 {[%clk 0:01:22.4]} 20... Rac8 {[%clk 0:01:16.7]} 21.
Rxd8+ {[%clk 0:01:14.4]} 21... Rxd8 {[%clk 0:01:17.6]} 22. Rd1 {[%clk 0:01:14]}
22... Rxd1+ {[%clk 0:01:11.7]} 23. Qxd1 {[%clk 0:01:13.5]} 23... Kf7 {[%clk
0:01:00.9]} 24. Qb1 {[%clk 0:01:08.4]} 24... Bc6 {[%clk 0:00:58.8]} 25. Qb3+
{[%clk 0:01:08.3]} 25... Qxb3 {[%clk 0:00:58.7]} 26. cxb3 {[%clk 0:01:06.3]}
26... a5 {[%clk 0:00:59]} 27. Kf2 {[%clk 0:01:06.3]} 27... a4 {[%clk 0:00:59.1]}
28. bxa4 {[%clk 0:01:04.9]} 28... Bxa4 {[%clk 0:00:58.8]} 29. Ke3 {[%clk
0:01:04.2]} 29... Bb5 {[%clk 0:00:58.9]} 30. Bb8 {[%clk 0:01:02.3]} 30... a6
{[%clk 0:00:58.7]} 31. h4 {[%clk 0:01:02.3]} 31... g5 {[%clk 0:00:56.9]} 32. g3
{[%clk 0:01:01.7]} 32... Kg6 {[%clk 0:00:56.1]} 33. hxg5 {[%clk 0:00:52.3]}
33... fxg5 {[%clk 0:00:54.7]} 34. g4 {[%clk 0:00:52.3]} 34... Kf6 {[%clk
0:00:47.8]} 35. Bc7 {[%clk 0:00:50.8]} 35... Ke6 {[%clk 0:00:47.9]} 36. a3
{[%clk 0:00:49.8]} 36... Bc4 {[%clk 0:00:47.4]} 37. Kd4 {[%clk 0:00:48.9]} 37...
Bb3 {[%clk 0:00:47]} 38. Ba5 {[%clk 0:00:44]} 38... Bd1 {[%clk 0:00:46.6]} 39.
Ke3 {[%clk 0:00:43.9]} 39... Kf6 {[%clk 0:00:46.3]} 40. Bc3+ {[%clk 0:00:43.3]}
40... Kg6 {[%clk 0:00:46.1]} 41. Bb4 {[%clk 0:00:42.4]} 41... e6 {[%clk
0:00:46.2]} 42. Be7 {[%clk 0:00:41.9]} 42... h5 {[%clk 0:00:45.9]} 43. gxh5+
{[%clk 0:00:41.4]} 43... Kxh5 {[%clk 0:00:46.8]} 44. Kf2 {[%clk 0:00:38]} 44...
g4 {[%clk 0:00:43]} 45. fxg4+ {[%clk 0:00:37.9]} 45... Kxg4 {[%clk 0:00:43.6]}
46. Ke3 {[%clk 0:00:37.7]} 46... Bc2 {[%clk 0:00:44.1]} 47. e5 {[%clk
0:00:37.6]} 47... Kf5 {[%clk 0:00:38.4]} 48. Bd6 {[%clk 0:00:38.5]} 48... Bb1
{[%clk 0:00:37.9]} 1/2-1/2

[Event "Early-Titled-Tuesday-Blitz-May-07-2024"]
[Site "Chess.com"]
[Date "2024.05.07"]
[Round "4"]
[White "Shota_Azaladze"]
[Black "DrVelja"]
[Result "0-1"]
[WhiteElo "2724"]
[BlackElo "2955"]
[TimeControl "180+1"]
[EndTime "8:42:09 PDT"]
[Termination "DrVelja won by resignation"]

1. Nf3 {[%clk 0:03:00.7]} 1... d5 {[%clk 0:02:58.9]} 2. g3 {[%clk 0:03:01.5]}
2... Nc6 {[%clk 0:02:58.3]} 3. Bg2 {[%clk 0:03:02.1]} 3... e5 {[%clk 0:02:58.5]}
4. d3 {[%clk 0:03:02.9]} 4... f6 {[%clk 0:02:58.5]} 5. e4 {[%clk 0:03:02.5]}
5... d4 {[%clk 0:02:57.1]} 6. h4 {[%clk 0:02:59.7]} 6... Be6 {[%clk 0:02:56.9]}
7. h5 {[%clk 0:02:59.8]} 7... Qd7 {[%clk 0:02:56.5]} 8. Nh4 {[%clk 0:03:00.3]}
8... Nge7 {[%clk 0:02:54.9]} 9. f4 {[%clk 0:02:55.3]} 9... exf4 {[%clk
0:02:50.9]} 10. gxf4 {[%clk 0:02:56.2]} 10... f5 {[%clk 0:02:50.7]} 11. e5
{[%clk 0:02:55.9]} 11... Nd5 {[%clk 0:02:47.8]} 12. Qe2 {[%clk 0:02:46.6]} 12...
O-O-O {[%clk 0:02:46.2]} 13. a3 {[%clk 0:02:43.4]} 13... g5 {[%clk 0:02:25.2]}
14. fxg5 {[%clk 0:02:30.7]} 14... f4 {[%clk 0:02:25.6]} 15. Nd2 {[%clk
0:02:24.7]} 15... Ne3 {[%clk 0:02:24.3]} 16. Ndf3 {[%clk 0:02:25]} 16... Bc5
{[%clk 0:02:04.4]} 17. b4 {[%clk 0:02:21.8]} 17... Bb6 {[%clk 0:01:56.1]} 18. b5
{[%clk 0:02:15.8]} 18... Ne7 {[%clk 0:01:55.8]} 19. a4 {[%clk 0:02:15.5]} 19...
Ba5+ {[%clk 0:01:47.6]} 20. Bd2 {[%clk 0:02:12.4]} 20... Nxc2+ {[%clk
0:01:37.2]} 21. Kf2 {[%clk 0:02:12.2]} 21... Bxd2 {[%clk 0:01:36.1]} 22. Qxd2
{[%clk 0:02:11.2]} 22... Nxa1 {[%clk 0:01:35.4]} 23. Rxa1 {[%clk 0:02:12.1]}
23... Nd5 {[%clk 0:01:30.3]} 24. Bh1 {[%clk 0:02:02.9]} 24... Ne3 {[%clk
0:01:22.4]} 25. Rc1 {[%clk 0:02:00.1]} 25... Bd5 {[%clk 0:01:22.7]} 26. Qb4
{[%clk 0:01:55.8]} 26... Qg4 {[%clk 0:01:12.4]} 27. Rg1 {[%clk 0:01:45.7]} 27...
Qd7 {[%clk 0:01:06.4]} 28. Qxd4 {[%clk 0:01:39.4]} 28... Ng4+ {[%clk 0:00:50.1]}
29. Ke1 {[%clk 0:01:38.7]} 29... Kb8 {[%clk 0:00:46.2]} 30. Kd2 {[%clk
0:01:31.1]} 30... Rhe8 {[%clk 0:00:30.6]} 31. Kc3 {[%clk 0:01:26.6]} 31... Ne3
{[%clk 0:00:29.6]} 32. g6 {[%clk 0:01:22.6]} 32... Qe7 {[%clk 0:00:28.6]} 33.
Qb4 {[%clk 0:01:21.5]} 33... Qe6 {[%clk 0:00:14.1]} 34. Nd4 {[%clk 0:01:18.3]}
34... Qxe5 {[%clk 0:00:14.2]} 35. Nf3 {[%clk 0:01:09.4]} 35... Bxf3 {[%clk
0:00:14.4]} 36. Bxf3 {[%clk 0:01:10.3]} 36... Nf5 {[%clk 0:00:15]} 37. g7 {[%clk
0:01:09.4]} 37... Nxd4 {[%clk 0:00:13.5]} 38. Be4 {[%clk 0:00:57]} 38... Ne2+
{[%clk 0:00:08]} 39. Kd2 {[%clk 0:00:56.7]} 39... Nxg1 {[%clk 0:00:08.6]} 40.
Qc4 {[%clk 0:00:56]} 40... Qxe4 {[%clk 0:00:07]} 41. g8=Q {[%clk 0:00:54]} 41...
Qe2+ {[%clk 0:00:06.2]} 42. Kc3 {[%clk 0:00:53.8]} 42... Rxg8 {[%clk 0:00:07.1]}
43. Qxc7+ {[%clk 0:00:53.8]} 43... Kxc7 {[%clk 0:00:06.5]} 0-1

[Event "Early-Titled-Tuesday-Blitz-May-07-2024"]
[Site "Chess.com"]
[Date "2024.05.07"]
[Round "4"]
[White "PonyQueen07"]
[Black "RebecaJimnz"]
[Result "1-0"]
[WhiteElo "2145"]
[BlackElo "2294"]
[TimeControl "180+1"]
[EndTime "8:42:09 PDT"]
[Termination "PonyQueen07 won by checkmate"]

1. c4 {[%clk 0:03:00.9]} 1... c5 {[%clk 0:02:59.4]} 2. Nc3 {[%clk 0:03:01.2]}
2... Nc6 {[%clk 0:02:59.3]} 3. g3 {[%clk 0:03:01.8]} 3... g6 {[%clk 0:02:59.8]}
4. Bg2 {[%clk 0:03:02.3]} 4... Bg7 {[%clk 0:03:00.4]} 5. e4 {[%clk 0:03:01.9]}
5... d6 {[%clk 0:02:59.9]} 6. Nge2 {[%clk 0:03:02.5]} 6... e5 {[%clk 0:02:58.4]}
7. O-O {[%clk 0:03:02.9]} 7... Be6 {[%clk 0:02:57.8]} 8. d3 {[%clk 0:03:03.3]}
8... Qd7 {[%clk 0:02:58.3]} 9. Nd5 {[%clk 0:02:59.8]} 9... O-O-O {[%clk
0:02:50.3]} 10. a3 {[%clk 0:02:47.3]} 10... Bh3 {[%clk 0:02:48.8]} 11. b4 {[%clk
0:02:46.1]} 11... h5 {[%clk 0:02:47.1]} 12. bxc5 {[%clk 0:02:42.2]} 12... dxc5
{[%clk 0:02:46.3]} 13. Bxh3 {[%clk 0:01:30.8]} 13... Qxh3 {[%clk 0:02:45.5]} 14.
Kh1 {[%clk 0:01:28.8]} 14... h4 {[%clk 0:02:34.9]} 15. Ng1 {[%clk 0:01:26.5]}
15... Qd7 {[%clk 0:02:35.1]} 16. Be3 {[%clk 0:01:05]} 16... hxg3 {[%clk
0:01:52.4]} 17. fxg3 {[%clk 0:01:02.8]} 17... b6 {[%clk 0:01:48.6]} 18. Qa4
{[%clk 0:00:20.6]} 18... Nh6 {[%clk 0:01:45]} 19. Kg2 {[%clk 0:00:02]} 19... Ng4
{[%clk 0:01:43]} 20. Nf3 {[%clk 0:00:01.8]} 20... Nxe3+ {[%clk 0:01:37.5]} 21.
Nxe3 {[%clk 0:00:02.7]} 21... Qxd3 {[%clk 0:01:36.8]} 22. Qxc6+ {[%clk
0:00:02.5]} 22... Kb8 {[%clk 0:01:36]} 23. Nd5 {[%clk 0:00:02.2]} 23... Qxe4
{[%clk 0:00:39]} 24. Rab1 {[%clk 0:00:02.1]} 24... Qc2+ {[%clk 0:00:20]} 25. Kg1
{[%clk 0:00:02.1]} 25... Rxh2 {[%clk 0:00:14.5]} 26. Rxb6+ {[%clk 0:00:02.6]}
26... axb6 {[%clk 0:00:14.2]} 27. Qxb6+ {[%clk 0:00:03.1]} 27... Ka8 {[%clk
0:00:14.5]} 28. Nc7# {[%clk 0:00:03.5]} 1-0

[Event "Early-Titled-Tuesday-Blitz-May-07-2024"]
[Site "Chess.com"]
[Date "2024.05.07"]
[Round "4"]
[White "Pintacara"]
[Black "DvaHrasta"]
[Result "0-1"]
[WhiteElo "2689"]
[BlackElo "2453"]
[TimeControl "180+1"]
[EndTime "8:42:11 PDT"]
[Termination "DvaHrasta won on time"]

1. d4 {[%clk 0:03:00.9]} 1... Nf6 {[%clk 0:02:57.8]} 2. Bg5 {[%clk 0:03:00.1]}
2... c5 {[%clk 0:02:57]} 3. d5 {[%clk 0:02:59.6]} 3... Qb6 {[%clk 0:02:55.2]} 4.
Nc3 {[%clk 0:02:58.9]} 4... Qxb2 {[%clk 0:02:55.1]} 5. Bd2 {[%clk 0:02:59.4]}
5... Qb6 {[%clk 0:02:54.8]} 6. e4 {[%clk 0:02:59.9]} 6... e5 {[%clk 0:02:55]} 7.
dxe6 {[%clk 0:02:53.8]} 7... dxe6 {[%clk 0:02:36.8]} 8. Nf3 {[%clk 0:02:48]}
8... Nc6 {[%clk 0:02:35.1]} 9. Bc4 {[%clk 0:02:34.3]} 9... Be7 {[%clk
0:02:33.4]} 10. O-O {[%clk 0:02:29]} 10... O-O {[%clk 0:02:33.3]} 11. e5 {[%clk
0:02:29.5]} 11... Nd7 {[%clk 0:02:27.6]} 12. Re1 {[%clk 0:02:28.4]} 12... a6
{[%clk 0:02:24.2]} 13. Rb1 {[%clk 0:02:21.5]} 13... Qc7 {[%clk 0:02:23.3]} 14.
Bf4 {[%clk 0:02:17.9]} 14... b5 {[%clk 0:02:19]} 15. Bd3 {[%clk 0:02:14]} 15...
Rd8 {[%clk 0:02:09]} 16. Qe2 {[%clk 0:02:05.2]} 16... Bb7 {[%clk 0:02:01.3]} 17.
Bg3 {[%clk 0:01:36.3]} 17... c4 {[%clk 0:01:53.6]} 18. Be4 {[%clk 0:01:31.2]}
18... Nc5 {[%clk 0:01:49.1]} 19. a3 {[%clk 0:01:11.3]} 19... Rd7 {[%clk
0:01:41.2]} 20. h4 {[%clk 0:01:05]} 20... Rad8 {[%clk 0:01:38.9]} 21. Qe3 {[%clk
0:00:48.7]} 21... Nd4 {[%clk 0:01:21.9]} 22. Nxd4 {[%clk 0:00:31.1]} 22... Rxd4
{[%clk 0:01:20.8]} 23. Bxb7 {[%clk 0:00:30]} 23... Qxb7 {[%clk 0:01:19.5]} 24.
Ne2 {[%clk 0:00:30.4]} 24... Re4 {[%clk 0:01:12.9]} 25. Qf3 {[%clk 0:00:30.8]}
25... Rd2 {[%clk 0:01:09.4]} 26. Nf4 {[%clk 0:00:09.4]} 26... Rxe1+ {[%clk
0:01:08.4]} 27. Rxe1 {[%clk 0:00:10.2]} 27... Qxf3 {[%clk 0:01:08.1]} 28. gxf3
{[%clk 0:00:11.1]} 28... h6 {[%clk 0:01:04.8]} 29. h5 {[%clk 0:00:08.9]} 29...
Bg5 {[%clk 0:01:02.5]} 30. Ng2 {[%clk 0:00:09.2]} 30... Rxc2 {[%clk 0:01:00.9]}
31. f4 {[%clk 0:00:09.7]} 31... Be7 {[%clk 0:01:00.2]} 32. Rd1 {[%clk
0:00:10.2]} 32... Nd3 {[%clk 0:01:00.3]} 33. Ne3 {[%clk 0:00:08.8]} 33... Rc1
{[%clk 0:00:59.7]} 34. Rxc1 {[%clk 0:00:05.5]} 34... Nxc1 {[%clk 0:00:59.7]} 35.
f5 {[%clk 0:00:06.2]} 35... Bxa3 {[%clk 0:00:58.4]} 36. f4 {[%clk 0:00:05.7]}
36... Nd3 {[%clk 0:00:56.9]} 37. fxe6 {[%clk 0:00:03.7]} 37... fxe6 {[%clk
0:00:56.6]} 38. f5 {[%clk 0:00:04.1]} 38... Bc5 {[%clk 0:00:56.7]} 39. fxe6
{[%clk 0:00:00.6]} 39... Bxe3+ {[%clk 0:00:55.9]} 40. Kf1 {[%clk 0:00:01.5]}
40... Bc5 {[%clk 0:00:54.3]} 41. Bh4 {[%clk 0:00:00.4]} 41... Kf8 {[%clk
0:00:53.9]} 0-1